Cogmind - Beta 13 @@@ ROGUE MODE // 2024.04.02 @ 12:03:03 Player: BionicSandwich Result: Destroyed by Piercing Trap Performance ------------- Evolutions (0) 0 Regions Visited (3) 600 Robots Destroyed (33) 165 Value Destroyed (881) 881 Prototype IDs (2) 40 Alien Tech Used (0) 0 Bonus (0) 0 TOTAL SCORE: 1686 Bonus ------- None Cogmind --------- Core Integrity 0/250 Matter 290/300 Energy 246/250 System Corruption 0% Temperature Cool (2) Movement Treading (160) Location -10/Subcaves Parts ------- > --- POWER (1) -------- Ion Engine > --- PROPULSION (2) --- Light Treads Light Treads > --- UTILITY (2) ------ Large Storage Unit Core Shielding > --- WEAPON (2) ------- Beam Rifle Heavy Assault Rifle > --- INVENTORY (15) --- Aluminum Leg Large Battery (200) Improved Terrain Scanner Weapon Shielding Datajack Mining Laser Mining Claw Peak State ------------ > --- POWER ------------ Ion Engine > --- PROPULSION ------- Aluminum Leg Aluminum Leg > --- UTILITY ---------- Large Storage Unit Improved Terrain Scanner > --- WEAPON ----------- Beam Rifle Heavy Assault Rifle > --- INVENTORY -------- Light Treads Light Treads Aluminum Leg Aluminum Leg Large Battery Core Shielding Weapon Shielding Datajack Mining Laser Mining Claw [Rating: 12] Favorites ----------- Power Ion Engine Engine Ion Engine Power Core Light Nuclear Core Propulsion Aluminum Leg Treads Light Treads Leg Aluminum Leg Utility Large Storage Unit Device Improved Terrain Scanner Storage Large Storage Unit Processor Signal Interpreter Protection Light Armor Plating Weapon Heavy Assault Rifle Energy Gun Beam Rifle Ballistic Gun Heavy Assault Rifle Ballistic Cannon Light Cannon Launcher Grenade Launcher Slashing Weapon Mining Claw Build | -11 -10 -10 -10 ------- Run | Yrd Mat Min Sub Slots Evolved . | . . . . Power . | . . . . Propulsion . | . . . . Utility . | . . . . Weapon . | . . . . Parts Attached 39 | 6 9 23 1 Power 7 | 1 2 4 . Engine 3 | 1 . 2 . Core 4 | . 2 2 . Reactor . | . . . . Propulsion 8 | 2 . 6 . Treads 5 | 2 . 3 . Leg 3 | . . 3 . Wheel . | . . . . Hover . | . . . . Flight . | . . . . Utility 10 | 1 5 3 1 Device 1 | . . 1 . Storage 5 | 1 4 . . Processor 1 | . . 1 . Hackware . | . . . . Protection 3 | . 1 1 1 Artifact . | . . . . Weapon 14 | 2 2 10 . Energy Gun 2 | . . 2 . Energy Cannon . | . . . . Ballistic Gun 3 | 2 . 1 . Ballistic Cannon 6 | . 2 4 . Launcher 2 | . . 2 . Special Weapon . | . . . . Impact Weapon . | . . . . Slashing Weapon 1 | . . 1 . Piercing Weapon . | . . . . Special Melee Weapon . | . . . . Unidentified Prototypes . | . . . . Parts Lost 9 | . . 9 . Power 3 | . . 3 . Propulsion 3 | . . 3 . Utility 1 | . . 1 . Weapon 2 | . . 2 . Highest Loss Streak 3 | . . 3 . To Critical Strikes . | . . . . Average Slot Usage (%) 97 | . 92 99 100 Engine 9 | . . 10 14 Core 4 | . 12 3 . Treads 11 | . 28 6 28 Leg 16 | . . 21 . Device 3 | . . 3 11 Storage 14 | . 14 14 14 Processor 6 | . . 9 . Protection 2 | . 7 1 2 Energy Gun 9 | . . 10 14 Ballistic Gun 12 | . 23 10 14 Ballistic Cannon 5 | . 4 6 . Naked Turns . | . . . . Heaviest Build 34 | 13 34 34 32 Greatest Support 40 | 40 40 40 40 Greatest Overweight (x) 2 | . . 2 . Average Overweight (x) . | . . . . Largest Inventory Capacity 20 | 8 20 15 15 Average Capacity 13 | 7 10 15 15 Most Carried 13 | 5 10 13 7 Average Carried 8 | 2 6 8 7 Final Capacity 15 | 8 15 15 15 Final Carried 10 | 2 10 7 7 Class Distribution -------------------- 68% | Scavenger-Mutant 31% | Mutant Dominant Class ---------------- Mutant | -10/Materials Scavenger-Mutant | -10/Mines Scavenger-Mutant | -10/Subcaves Resources | -11 -10 -10 -10 ----------- Run | Yrd Mat Min Sub Matter Collected 1038 | 267 188 583 . Remotely . | . . . . Salvage Created 1107 | 95 492 520 . Parts 74 | 8 30 36 . Haulers Intercepted 1 | . 1 . . Recyclers Shooed 4 | 1 3 . . Parts Field Recycled . | . . . . Retrieved Matter . | . . . . Parts Self-Destructed . | . . . . Prevented . | . . . . Kills | -11 -10 -10 -10 ------- Run | Yrd Mat Min Sub Combat Hostiles Destroyed 22 | . 7 15 . Guns 9 | . 7 2 . Cannons 13 | . . 13 . Classes Destroyed 11 | 2 7 2 . Worker 2 | . 1 1 . Builder 1 | . 1 . . Tunneler 2 | 1 . 1 . Hauler 1 | . 1 . . Recycler 3 | 1 2 . . Operator 1 | . 1 . . Watcher 1 | . 1 . . Swarmer 3 | . 3 . . Grunt 16 | . 4 12 . Sentry 2 | . . 2 . Demolisher 1 | . . 1 . Best Kill Streak 6 | 2 6 3 . Combat Bots Only 3 | . 3 3 . Max Kills in Single Turn 1 | 1 1 1 . Gunslinging . | . . . . Exploded . | . . . . Melee . | . . . . Uniques/NPCs Destroyed . | . . . . Combat | -11 -10 -10 -10 -------- Run | Yrd Mat Min Sub Hostile Shots Fired 137 | . 27 110 . Missed 41 | . 5 36 . Damage Taken 1536 | . 204 1272 60 Core 254 | . 32 214 8 Absorbed by Shields . | . . . . Redirected to Shielding 1 | . . . 1 Regen/Repaired (Parts) 35 | . 35 . . Core Remaining (%) 100 | 100 . . . Volleys Fired 95 | 5 38 52 . Largest 2 | 2 2 2 . Hottest 79 | 40 40 79 . Shots Fired 183 | 10 76 97 . Gun 104 | 10 76 18 . Cannon 77 | . . 77 . Launcher 2 | . . 2 . Special . | . . . . Kinetic 170 | 10 76 84 . Thermal 11 | . . 11 . Explosive 2 | . . 2 . Electromagnetic . | . . . . Robot Hit Streak 22 | 4 9 22 . Robot Miss Streak 3 | 2 3 3 . Penetration Max . | . . . . Secondary Targets 1 | . 1 . . Max Gunslinging Chain 1 | . 1 . . Shots Hit Robots 119 | 6 51 62 . Core Hits 58 | 4 26 28 . Critical Kills . | . . . . Critical Parts Destroyed . | . . . . Critical Strikes 1 | . . 1 . Blast 1 | . . 1 . Melee Attacks 2 | . . 2 . Impact . | . . . . Slashing 2 | . . 2 . Piercing . | . . . . Sneak Attacks . | . . . . Combat Hostiles . | . . . . Follow-up Attacks . | . . . . Damage Inflicted 1664 | 73 535 1056 . Guns 793 | 73 533 187 . Cannons 798 | . . 798 . Explosions 24 | . . 24 . Melee 23 | . . 23 . Ramming 26 | . 2 24 . Kinetic 1512 | 73 533 906 . Thermal 79 | . . 79 . Explosive 24 | . . 24 . Electromagnetic . | . . . . Impact . | . . . . Slashing 23 | . . 23 . Piercing . | . . . . Highest Corruption . | . . . . Average Corruption . | . . . . Corruption Purged . | . . . . Corruption Blocked . | . . . . Overload Shots . | . . . . Overflow Damage . | . . . . Projectiles . | . . . . Explosions . | . . . . Melee . | . . . . Knockbacks 9 | . . 9 . Impact . | . . . . Kinetic 8 | . . 8 . Secondary 1 | . . 1 . Self-Inflicted Damage . | . . . . Shots . | . . . . Rammed 5 | . 2 3 . Targets Rammed 12 | . 2 10 . Kicked 6 | . . 6 . Crushed 1 | . . 1 . Highest Temperature 219 | . 10 219 . Average Temperature 42 | . 4 57 . Received Heat Transfer 495 | . 51 444 . Effects 1 | . . 1 . Energy Bleed 1 | . . 1 . Siege Activations . | . . . . Robots Corrupted . | . . . . Combat Hostiles . | . . . . Parts Fried . | . . . . Impact Corruptions . | . . . . Robots Melted . | . . . . Combat Hostiles . | . . . . Parts Melted 1 | . . 1 . Heat Transferred 187 | . . 187 . Parts Sabotaged . | . . . . Parts Stolen . | . . . . Parts Stripped . | . . . . Power Chain Reactions . | . . . . Alert | -11 -10 -10 -10 ------- Run | Yrd Mat Min Sub Peak Influence 230 | 10 230 145 . Initial 6 | . 6 . . Average 35 | 2 84 25 . Maximum Alert Level 1 | . 1 . . Low Security (%) 96 | 100 83 100 . Level 1 3 | . 16 . . Level 2 . | . . . . Level 3 . | . . . . Level 4 . | . . . . Level 5 . | . . . . High Security . | . . . . Max Security . | . . . . Squads Dispatched 1 | . 1 . . Investigation . | . . . . Extermination . | . . . . Reinforcement 1 | . 1 . . Assault . | . . . . Garrison . | . . . . Intercept . | . . . . Searches Triggered . | . . . . Construction Impeded . | . . . . Haulers Reinforced . | . . . . Active Scanning Responses . | . . . . Cargo Convoy Interrupts . | . . . . Stealth | -11 -10 -10 -10 --------- Run | Yrd Mat Min Sub Distress Signals 3 | . 3 . . Communications Jammed . | . . . . Distress Signals . | . . . . Times Spotted 31 | . 15 16 . Peak Tracking Total 5 | . 5 4 . Tactical Retreats 2 | . . 2 . Traps | -11 -10 -10 -10 ------- Run | Yrd Mat Min Sub Traps Triggered 2 | . . . 2 Indirectly . | . . . . Trap Hack Attempts . | . . . . Triggered . | . . . . Disarmed . | . . . . Reprogrammed . | . . . . Reused . | . . . . Traps Extracted . | . . . . Installed . | . . . . Triggered . | . . . . Machines | -11 -10 -10 -10 ---------- Run | Yrd Mat Min Sub Machines Disabled 2 | . . 2 . Max in Single Turn 2 | . . 2 . Machines Repaired . | . . . . Machines Dismantled . | . . . . Machines Sabotaged . | . . . . Overloaded Fab Kills . | . . . . Hacking | -11 -10 -10 -10 --------- Run | Yrd Mat Min Sub Machines Accessed 3 | . 3 . . Terminals 2 | . 2 . . Fabricators . | . . . . Repair Stations 1 | . 1 . . Recycling Units . | . . . . Scanalyzers . | . . . . Garrison Access . | . . . . Total Hacks 10 | . 10 . . Successful 5 | . 5 . . Failed 5 | . 5 . . Catastrophic . | . . . . Database Lockouts . | . . . . Manual . | . . . . Terminals 7 | . 7 . . Fabricators . | . . . . Repair Stations 3 | . 3 . . Recycling Units . | . . . . Scanalyzers . | . . . . Garrison Access . | . . . . Terminal Hacks 3 | . 3 . . Prototype ID Bank 1 | . 1 . . Emergency Access Points 1 | . 1 . . Reinforcement Status 1 | . 1 . . Fabricator Hacks . | . . . . Repair Station Hacks 2 | . 2 . . Scan Component 1 | . 1 . . Repair 1 | . 1 . . Recycling Unit Hacks . | . . . . Scanalyzer . | . . . . Garrison Access Hacks . | . . . . Unauthorized Hacks . | . . . . Terminals . | . . . . Fabricators . | . . . . Repair Stations . | . . . . Recycling Units . | . . . . Scanalyzers . | . . . . Garrison Access . | . . . . Data Cores Recovered . | . . . . Used . | . . . . Hacking Detections 1 | . 1 . . Full Trace Events . | . . . . Feedback Events . | . . . . Feedback Blocked . | . . . . Robot Schematics Acquired . | . . . . Robots Built . | . . . . Authchips . | . . . . Time . | . . . . Total Robot Build Rating . | . . . . Part Schematics Acquired . | . . . . Parts Built . | . . . . Authchips . | . . . . Time . | . . . . Total Part Build Rating . | . . . . Parts Repaired 1 | . 1 . . Time 38 | . 38 . . Parts Recycled . | . . . . Recycled Matter . | . . . . Retrieved Matter . | . . . . Retrieved Components . | . . . . Parts Scanalyzed . | . . . . Part Schematics Acquired . | . . . . Parts Damaged . | . . . . Bothacking | -11 -10 -10 -10 ------------ Run | Yrd Mat Min Sub Used RIF Installer . | . . . . Robots Hacked . | . . . . Non-combat . | . . . . Combat . | . . . . Robot Hacks Applied . | . . . . Relay Couplers Released . | . . . . Fabnet Peak Effective % . | . . . . Robots Rewired . | . . . . Allies Hacked . | . . . . Hacks Repelled . | . . . . Allies | -11 -10 -10 -10 -------- Run | Yrd Mat Min Sub Total Allies 3 | . . 3 . Largest Group 3 | . . 3 3 Highest-Rated Group 40 | . . 40 40 Highest-Rated Ally 16 | . . 16 16 Total Orders . | . . . . Ally Attacks . | . . . . Total Damage . | . . . . Kills . | . . . . Allies Corrupted . | . . . . Allies Melted . | . . . . Intel | -11 -10 -10 -10 ------- Run | Yrd Mat Min Sub Robot Analysis Total . | . . . . Derelict Logs Recovered 2 | . . 2 . Drone Launches . | . . . . Drone Recoveries . | . . . . Exploration | -11 -10 -10 -10 ------------- Run | Yrd Mat Min Sub Turns Passed 4916 | 96 849 3649 322 Spaces Moved 2128 | 53 403 1637 35 Core 14 | 14 . . . Treads 874 | 39 403 397 35 Legs 1240 | . . 1240 . Wheels . | . . . . Hover . | . . . . Flight . | . . . . Fastest Speed 50 | 50 160 160 160 Average Speed 177 | 130 160 184 160 Slowest Speed 260 | 160 160 260 160 Overloaded Moves . | . . . . Propulsion Burnouts . | . . . . Robots Hopped . | . . . . Cave-ins Triggered . | . . . . Exploration Rate (%) 38 | 3 47 101 4 Regions Visited 3 Branch Regions 2 Pre-discovered Areas 1 | . . 1 . Known Exits Taken . | . . . . Unknown Exits Taken 3 | 1 1 1 . Scrap Searched 2 | . . 2 . Spaces Dug . | . . . . Terrain Destroyed 11 | . . 11 . Melee . | . . . . Projectile . | . . . . AOE 11 | . . 11 . Terrain Rammed . | . . . . Walls Destroyed . | . . . . Machines Disabled . | . . . . Actions | -11 -10 -10 -10 --------- Run | Yrd Mat Min Sub Total 3068 | 71 539 2158 300 Wait 734 | . 60 410 264 Move 2125 | 52 402 1636 35 Hop . | . . . . Pick Up 43 | 8 19 16 . Fast Attach . | . . . . Attach 19 | 6 3 10 . Detach . | . . . . Swap 20 | . 6 13 1 Drop 18 | . 9 9 . Fire 95 | 5 38 52 . Melee 2 | . . 2 . Ram . | . . . . Kick 6 | . . 6 . Crush 6 | . 2 4 . Escape Stasis . | . . . . Rewire . | . . . . Trap . | . . . . Miscellaneous . | . . . . Route ------- -11/Scrapyard -10/Materials (discovered 2 exits: *Mat / [*Min]) -10/Mines (discovered 3 exits: *Mat x2 / [*Sub]) -10/Subcaves History --------- Turn | Location | Event 10 | -11/Scrapyard | Discovered new exit (range 15) 97 | -11/Scrapyard | Entered Materials 305 | -10/Materials | Build established: Mutant 647 | -10/Materials | Repaired Lgt. Nuclear Core 705 | -10/Materials | Discovered new exit (range 3) 726 | -10/Materials | Discovered new exit (range 13) 946 | -10/Materials | Entered Mines 1215 | -10/Mines | Assembled infested the area 1279 | -10/Mines | Discovered new exit (range 10) 1349 | -10/Mines | Lost 3 parts (1p1n1u) 1364 | -10/Mines | Identified exit to Materials 1523 | -10/Mines | Discovered exit to Materials (range 9) 1735 | -10/Mines | Learned location of Mines (-8) 1752 | -10/Mines | Learned Materials stockpile data 1862 | -10/Mines | Core integrity fell below 50% 1904 | -10/Mines | Core integrity fell below 20% 1906 | -10/Mines | Lost 3 parts (1p1n1w) 1994 | -10/Mines | Build established: Scavenger-Mutant 2269 | -10/Mines | Assisted by bots powering up and referring to "LRC-V3" 4584 | -10/Mines | Discovered new exit (range 6) 4595 | -10/Mines | Entered Subcaves 4595 | -10/Subcaves | Accompanied by 3 allies 4917 | -10/Subcaves | Destroyed by Piercing Trap Last Messages --------------- K-01 Serf collects debris. Acquired 1 matter. Acquired Lgt. Treads. Dropped Aluminum Leg. Crushed K-01 Serf. K-01 Serf destroyed. Acquired 4 matter. Acquired 5 matter. Slammed into U-05 Engineer. Acquired 3 matter. EXIT=FOUND LOCATION=UNKNOWN AMBIENT_HEAT=-10 GOAL=ESCAPE I5-ETJ(R) emerges from concealment. Triggered Piercing Trap. Spikes shoot up from the floor. Critical hit (Impale). Triggered Piercing Trap. Spikes shoot up from the floor. Map ----- +----------------------------------------------------+ | | | | | | | | | ?????????????????????????????????????????????????? | | ?????????????????????????????????????????????????? | | ?????????????????????????????????????????????????? | | ?????????????????????????????????????????????????? | | ?????????????????????????????????????????????????? | | ?????????????????????????????????????????????????? | | ?????????????????????????????????????????????????? | | ?????????????????????????????????????????????????? | | ?????????????????????????????????????????????????? | | ?????????????????????????????????????????????????? | | ?????????????????????????????????????????????????? | | ?????????????????????????????????????????????????? | | ?????????????????????????????????????????????????? | | ?????????????????????????????????????????????????? | | ?????????????????????????????????????????????????? | | ?????????????????????????????????????????????????? | | ?????????????????????????????????????????????????? | | ?????????????????????????????????????????????????? | | ?????????????????????????????????????????????????# | | ???????????????????????#####?????????????????#???# | | ???????????????????????# ##???????????????#?#??# | | ?????????????###???????# @ #???????????????#????? | | ????????????## ??#?## ##????????????????#???? | | ????????????# # # #######????????????#????? | | ????????????# g#?## ##########??????#?# | | ????????????????# ### ##????#??# | | ????????????????## # ###???### | | ?????????????????# ?## ^ ^ # ##????? | | ???????????????? # # # ######## | | ?????????????? ######## # ## # | | ???????????? #??????# # | | ????????????# # ## #### ^ ##??????# # | | ??????????????#???## #???##### ##???????# ## ## | | ???????????????????##????????####????????# ### ##? | | ?????????????????????????????????????????# ### ? | | ????????????????????????????????????????? ##?# | | ?????????????????????????????????????????#??### ## | | ????????????????????????????????????????? #?#? ##? | | ????????????????????????????????????????????#? ??? | | ?????????????????????????????????????????????#???? | | ????????????????????????????????????????????#????# | | ????????????????????????????????????????????##???# | | ???????????????????????????????????????????????#?? | | ???????????????????????????????????????????????#?? | | ??????????????????????????????????????????????#??? | | ????????????????????????????????????????????????#? | +----------------------------------------------------+ Best States ------------- Heat Dissipation 25 Energy Generation 14 Energy Capacity 250 Matter Stores 300 Matter Capacity 300 Sight Range 16 Terrain Scan Range 16 Terrain Scan Density 10 Armor Coverage 150 Core Shielding 20 Evasion (%) 50 Recoil Reduction 2 Item Schematics ----------------- None Robot Schematics ------------------ None Fabricated ------------ Nothing Alien Tech Used ----------------- None Achievements -------------- None Challenges ------------ None Game ------ Seed ExplosiveThermicDriver Manual? 0 Play Time 00:21:06 Cumulative 3.2 hours Start 2024.04.02 @ 11:42:36 End 2024.04.02 @ 12:03:03 Sessions 1 Manual Loads 0 Difficulty Rogue Special Mode None Game No. 13 Rogue 13 Adventurer 0 Explorer 0 Win Type - Total 0 Types 0/0/0/0/0/0/0/0/0 Lore% 7 Gallery% 9 Achievement% 10 Wizard Run 0 Options --------- Layout 1 ASCII 0 Keyboard 0 Movement Mouse Keybinds 0 Fullscreen 1 Font 24/Smallcaps Map View 50x35 Zoom Use 0% Tactical HUD 0 Map Filters NONE Filters NONE Steam 1 RUN: 978c5ecb-a4ec-4c0a-bbf6-b924e0a77dc1